[Event "Titled Tuesday Blitz August 08 Early 2023"]
[White "Kosteniuk, Alexandra"]
[Black "Berezin, Viktor"]
[WhiteFideId "4128125"]
[BlackFideId "14107872"]
[WhiteElo "2770"]
[BlackElo "2522"]
[Result "0-1"]
[Round "4"]
[TimeControl "180+1"]
[Date "2023.08.08"]
[WhiteClock "0:00:13"]
[BlackClock "0:00:05"]
[Board "126"]

1. Nf3 {[%clk 0:02:56]}  Nf6 {[%clk 0:02:57]} 2. g3 {[%clk 0:02:56]}  g6 {[%clk 0:02:51]} 3. b3 {[%clk 0:02:55]}  Bg7 {[%clk 0:02:52]} 4. Bb2 {[%clk 0:02:56]}  O-O {[%clk 0:02:52]} 5. Bg2 {[%clk 0:02:56]}  d6 {[%clk 0:02:49]} 6. c4 {[%clk 0:02:57]}  Nc6 {[%clk 0:02:47]} 7. d4 {[%clk 0:02:56]}  a6 {[%clk 0:02:45]} 8. Nc3 {[%clk 0:02:55]}  Rb8 {[%clk 0:02:46]} 9. d5 {[%clk 0:02:54]}  Na5 {[%clk 0:02:45]} 10. Qd3 {[%clk 0:02:47]}  c5 {[%clk 0:02:41]} 11. h4 {[%clk 0:02:39]}  h5 {[%clk 0:02:37]} 12. Ng5 {[%clk 0:02:36]}  b5 {[%clk 0:02:00]} 13. cxb5 {[%clk 0:02:36]}  axb5 {[%clk 0:02:00]} 14. Nxb5 {[%clk 0:02:35]}  Ba6 {[%clk 0:02:01]} 15. a4 {[%clk 0:02:35]}  Qe8 {[%clk 0:01:42]} 16. Qc3 {[%clk 0:02:27]}  Qd8 {[%clk 0:01:30]} 17. O-O {[%clk 0:02:12]}  Bxb5 {[%clk 0:01:22]} 18. axb5 {[%clk 0:02:12]}  Rxb5 {[%clk 0:01:23]} 19. Rfb1 {[%clk 0:01:33]}  Nxb3 {[%clk 0:01:15]} 20. Ra7 {[%clk 0:01:30]}  Nd4 {[%clk 0:01:08]} 21. Qd3 {[%clk 0:01:27]}  Qb8 {[%clk 0:01:04]} 22. Ra2 {[%clk 0:01:26]}  Rb3 {[%clk 0:00:57]} 23. Qd2 {[%clk 0:01:21]}  Rb4 {[%clk 0:00:41]} 24. Rd1 {[%clk 0:01:10]}  Qb7 {[%clk 0:00:35]} 25. Bc3 {[%clk 0:01:05]}  Rc4 {[%clk 0:00:35]} 26. e3 {[%clk 0:00:54]}  Ne2+ {[%clk 0:00:35]} 27. Qxe2 {[%clk 0:00:53]}  Rxc3 {[%clk 0:00:35]} 28. Rda1 {[%clk 0:00:50]}  Rb3 {[%clk 0:00:22]} 29. Ra7 {[%clk 0:00:50]}  Rb1+ {[%clk 0:00:19]} 30. Bf1 {[%clk 0:00:45]}  Qb8 {[%clk 0:00:17]} 31. Rxb1 {[%clk 0:00:43]}  Qxa7 {[%clk 0:00:17]} 32. e4 {[%clk 0:00:36]}  Rb8 {[%clk 0:00:17]} 33. Rd1 {[%clk 0:00:32]}  Ng4 {[%clk 0:00:16]} 34. Bh3 {[%clk 0:00:28]}  Rb2 {[%clk 0:00:14]} 35. Rd2 {[%clk 0:00:28]}  Qa1+ {[%clk 0:00:11]} 36. Kg2 {[%clk 0:00:29]}  Rxd2 {[%clk 0:00:07]} 37. Qxd2 {[%clk 0:00:30]}  Ne5 {[%clk 0:00:07]} 38. Qc2 {[%clk 0:00:18]}  c4 {[%clk 0:00:07]} 39. f4 {[%clk 0:00:16]}  Nd3 {[%clk 0:00:06]} 40. Qxc4 {[%clk 0:00:14]}  Qb2+ {[%clk 0:00:06]} 41. Kh1 {[%clk 0:00:13]}  Nf2+ {[%clk 0:00:06]} 42. Kg2 {[%clk 0:00:14]}  Nxe4+ {[%clk 0:00:05]} 43. Kf3 {[%clk 0:00:13]}  Nd2+ {[%clk 0:00:05]} 0-1


[Site "https://www.chess.com"]

[Event "Titled Tuesday Blitz August 08 Early 2023"]
[White "Jovic, Stanoje"]
[Black "Zeynalli, Rashad"]
[WhiteFideId "905020"]
[BlackFideId "13403320"]
[WhiteElo "2486"]
[BlackElo "2658"]
[Result "1-0"]
[Round "4"]
[TimeControl "180+1"]
[Date "2023.08.08"]
[WhiteClock "0:00:25"]
[BlackClock "0:00:45"]
[Board "130"]

1. c4 {[%clk 0:02:55]}  e6 {[%clk 0:02:59]} 2. g3 {[%clk 0:02:54]}  Nf6 {[%clk 0:02:58]} 3. Bg2 {[%clk 0:02:54]}  d5 {[%clk 0:02:58]} 4. Nf3 {[%clk 0:02:55]}  d4 {[%clk 0:02:55]} 5. O-O {[%clk 0:02:54]}  Nc6 {[%clk 0:02:52]} 6. e3 {[%clk 0:02:50]}  e5 {[%clk 0:02:38]} 7. exd4 {[%clk 0:02:48]}  exd4 {[%clk 0:02:38]} 8. Re1+ {[%clk 0:02:48]}  Be7 {[%clk 0:02:37]} 9. d3 {[%clk 0:02:48]}  O-O {[%clk 0:02:35]} 10. Bg5 {[%clk 0:02:48]}  h6 {[%clk 0:02:32]} 11. Bxf6 {[%clk 0:02:48]}  Bxf6 {[%clk 0:02:33]} 12. Nbd2 {[%clk 0:02:47]}  Bf5 {[%clk 0:02:32]} 13. Ne4 {[%clk 0:02:46]}  Bxe4 {[%clk 0:02:32]} 14. Rxe4 {[%clk 0:02:44]}  Re8 {[%clk 0:02:32]} 15. Nd2 {[%clk 0:02:40]}  Ne5 {[%clk 0:02:26]} 16. Qb3 {[%clk 0:02:35]}  Nd7 {[%clk 0:02:18]} 17. Qxb7 {[%clk 0:02:21]}  Rb8 {[%clk 0:02:07]} 18. Rxe8+ {[%clk 0:02:16]}  Qxe8 {[%clk 0:02:07]} 19. Qxc7 {[%clk 0:02:15]}  Rxb2 {[%clk 0:02:06]} 20. Ne4 {[%clk 0:02:13]}  a6 {[%clk 0:01:58]} 21. Qc6 {[%clk 0:02:04]}  Qd8 {[%clk 0:01:50]} 22. Qxa6 {[%clk 0:01:57]}  Ne5 {[%clk 0:01:51]} 23. c5 {[%clk 0:01:53]}  Be7 {[%clk 0:01:48]} 24. Rc1 {[%clk 0:01:45]}  f5 {[%clk 0:01:39]} 25. Nd6 {[%clk 0:01:43]}  Ng4 {[%clk 0:01:32]} 26. Qc4+ {[%clk 0:01:29]}  Kh7 {[%clk 0:01:32]} 27. Nxf5 {[%clk 0:01:22]}  Rxf2 {[%clk 0:01:31]} 28. Be4 {[%clk 0:01:16]}  Kh8 {[%clk 0:01:29]} 29. c6 {[%clk 0:01:10]}  Bg5 {[%clk 0:01:27]} 30. c7 {[%clk 0:01:03]}  Qc8 {[%clk 0:01:22]} 31. Bb7 {[%clk 0:00:34]}  Bxc1 {[%clk 0:00:48]} 32. Bxc8 {[%clk 0:00:30]}  Be3 {[%clk 0:00:47]} 33. Nxe3 {[%clk 0:00:27]}  dxe3 {[%clk 0:00:45]} 34. Bxg4 {[%clk 0:00:25]} 1-0


[Site "https://www.chess.com"]

[Event "Titled Tuesday Blitz August 08 Early 2023"]
[White "Yashmetov, Mikhail"]
[Black "Tregubov, Pavel V."]
[WhiteFideId "24198900"]
[BlackFideId "4115341"]
[WhiteElo "2480"]
[BlackElo "2621"]
[Result "1/2-1/2"]
[Round "4"]
[TimeControl "180+1"]
[Date "2023.08.08"]
[WhiteClock "0:00:07"]
[BlackClock "0:00:06"]
[Board "132"]

1. d4 {[%clk 0:03:00]}  Nf6 {[%clk 0:02:58]} 2. c4 {[%clk 0:03:00]}  e6 {[%clk 0:02:58]} 3. g3 {[%clk 0:03:00]}  Bb4+ {[%clk 0:02:53]} 4. Bd2 {[%clk 0:03:00]}  Qe7 {[%clk 0:02:52]} 5. Nf3 {[%clk 0:02:59]}  Bxd2+ {[%clk 0:02:49]} 6. Qxd2 {[%clk 0:02:59]}  Nc6 {[%clk 0:02:48]} 7. Nc3 {[%clk 0:02:58]}  d5 {[%clk 0:02:48]} 8. b3 {[%clk 0:02:09]}  O-O {[%clk 0:02:40]} 9. Bg2 {[%clk 0:02:07]}  Rd8 {[%clk 0:02:31]} 10. O-O {[%clk 0:02:01]}  dxc4 {[%clk 0:02:26]} 11. bxc4 {[%clk 0:02:01]}  Nxd4 {[%clk 0:02:24]} 12. Nxd4 {[%clk 0:02:01]}  e5 {[%clk 0:02:19]} 13. e3 {[%clk 0:01:13]}  c5 {[%clk 0:02:00]} 14. Nd5 {[%clk 0:01:09]}  Nxd5 {[%clk 0:02:00]} 15. Bxd5 {[%clk 0:01:01]}  exd4 {[%clk 0:01:47]} 16. exd4 {[%clk 0:01:02]}  cxd4 {[%clk 0:01:23]} 17. Qxd4 {[%clk 0:01:03]}  Be6 {[%clk 0:01:20]} 18. Rad1 {[%clk 0:00:49]}  Bxd5 {[%clk 0:00:53]} 19. cxd5 {[%clk 0:00:48]}  Rd6 {[%clk 0:00:53]} 20. Rd2 {[%clk 0:00:42]}  b6 {[%clk 0:00:50]} 21. Rfd1 {[%clk 0:00:39]}  Rc8 {[%clk 0:00:49]} 22. Qf4 {[%clk 0:00:33]}  h6 {[%clk 0:00:45]} 23. h4 {[%clk 0:00:33]}  Rc5 {[%clk 0:00:44]} 24. Qf3 {[%clk 0:00:28]}  Qd7 {[%clk 0:00:32]} 25. Kg2 {[%clk 0:00:24]}  Rf6 {[%clk 0:00:31]} 26. Qe4 {[%clk 0:00:20]}  Rd6 {[%clk 0:00:31]} 27. Qf3 {[%clk 0:00:20]}  Qd8 {[%clk 0:00:30]} 28. Qe4 {[%clk 0:00:19]}  Qf6 {[%clk 0:00:28]} 29. Qf3 {[%clk 0:00:17]}  Qxf3+ {[%clk 0:00:26]} 30. Kxf3 {[%clk 0:00:18]}  f5 {[%clk 0:00:24]} 31. h5 {[%clk 0:00:17]}  Kf7 {[%clk 0:00:24]} 32. Kf4 {[%clk 0:00:18]}  Kf6 {[%clk 0:00:23]} 33. Rd4 {[%clk 0:00:18]}  Ra5 {[%clk 0:00:23]} 34. R1d2 {[%clk 0:00:17]}  Rc5 {[%clk 0:00:20]} 35. R4d3 {[%clk 0:00:17]}  Rc4+ {[%clk 0:00:18]} 36. Kf3 {[%clk 0:00:17]}  Kg5 {[%clk 0:00:15]} 37. Re3 {[%clk 0:00:16]}  Rc7 {[%clk 0:00:11]} 38. Re6 {[%clk 0:00:09]}  Rcd7 {[%clk 0:00:10]} 39. Re5 {[%clk 0:00:06]}  Rf7 {[%clk 0:00:09]} 40. Re6 {[%clk 0:00:04]}  Rxe6 {[%clk 0:00:08]} 41. dxe6 {[%clk 0:00:04]}  Re7 {[%clk 0:00:08]} 42. Rd7 {[%clk 0:00:02]}  Kf6 {[%clk 0:00:08]} 43. Rd5 {[%clk 0:00:03]}  Kxe6 {[%clk 0:00:06]} 44. Rd1 {[%clk 0:00:02]}  Rc7 {[%clk 0:00:06]} 45. Re1+ {[%clk 0:00:02]}  Kf6 {[%clk 0:00:06]} 46. Rd1 {[%clk 0:00:03]}  Rc3+ {[%clk 0:00:06]} 47. Kf4 {[%clk 0:00:03]}  Rc4+ {[%clk 0:00:06]} 48. Kf3 {[%clk 0:00:04]}  Ra4 {[%clk 0:00:06]} 49. Rd2 {[%clk 0:00:02]}  Ra3+ {[%clk 0:00:02]} 50. Kf4 {[%clk 0:00:02]}  Ra4+ {[%clk 0:00:02]} 51. Kf3 {[%clk 0:00:02]}  Kg5 {[%clk 0:00:02]} 52. Rd7 {[%clk 0:00:02]}  Rxa2 {[%clk 0:00:02]} 53. Rxg7+ {[%clk 0:00:02]}  Kxh5 {[%clk 0:00:02]} 54. Kf4 {[%clk 0:00:02]}  b5 {[%clk 0:00:02]} 55. Kxf5 {[%clk 0:00:02]}  Rxf2+ {[%clk 0:00:03]} 56. Ke4 {[%clk 0:00:02]}  Rb2 {[%clk 0:00:03]} 57. Rxa7 {[%clk 0:00:02]}  Kg4 {[%clk 0:00:03]} 58. Rh7 {[%clk 0:00:02]}  Kh3 {[%clk 0:00:04]} 59. Rxh6+ {[%clk 0:00:03]}  Kxg3 {[%clk 0:00:04]} 60. Rb6 {[%clk 0:00:04]}  Kf2 {[%clk 0:00:04]} 61. Kd4 {[%clk 0:00:04]}  Ke2 {[%clk 0:00:05]} 62. Kc5 {[%clk 0:00:05]}  Rc2+ {[%clk 0:00:05]} 63. Kxb5 {[%clk 0:00:05]}  Rb2+ {[%clk 0:00:05]} 64. Kc6 {[%clk 0:00:06]}  Rxb6+ {[%clk 0:00:06]} 65. Kxb6 {[%clk 0:00:07]} 1/2-1/2


[Site "https://www.chess.com"]

[Event "Titled Tuesday Blitz August 08 Early 2023"]
[White "Zarubitski, Viachaslau"]
[Black "Vovk, Orest"]
[WhiteFideId "13509373"]
[BlackFideId "14113490"]
[WhiteElo "2618"]
[BlackElo "2477"]
[Result "0-1"]
[Round "4"]
[TimeControl "180+1"]
[Date "2023.08.08"]
[WhiteClock "0:01:44"]
[BlackClock "0:02:03"]
[Board "133"]

1. e4 {[%clk 0:02:57]}  g5 {[%clk 0:02:53]} 2. d4 {[%clk 0:02:56]}  g4 {[%clk 0:02:52]} 3. Nc3 {[%clk 0:02:54]}  Bg7 {[%clk 0:02:52]} 4. Be3 {[%clk 0:02:54]}  d6 {[%clk 0:02:51]} 5. h3 {[%clk 0:02:51]}  h5 {[%clk 0:02:50]} 6. Qd2 {[%clk 0:02:47]}  c6 {[%clk 0:02:49]} 7. O-O-O {[%clk 0:02:46]}  Qa5 {[%clk 0:02:48]} 8. Kb1 {[%clk 0:02:43]}  Nd7 {[%clk 0:02:46]} 9. hxg4 {[%clk 0:02:43]}  hxg4 {[%clk 0:02:46]} 10. Rxh8 {[%clk 0:02:43]}  Bxh8 {[%clk 0:02:46]} 11. Nge2 {[%clk 0:02:40]}  Nf8 {[%clk 0:02:45]} 12. Ng3 {[%clk 0:02:37]}  Be6 {[%clk 0:02:42]} 13. a3 {[%clk 0:02:12]}  O-O-O {[%clk 0:02:40]} 14. Bd3 {[%clk 0:02:05]}  Ng6 {[%clk 0:02:32]} 15. Nge2 {[%clk 0:01:57]}  Nf6 {[%clk 0:02:22]} 16. d5 {[%clk 0:01:53]}  cxd5 {[%clk 0:02:14]} 17. exd5 {[%clk 0:01:51]}  Nxd5 {[%clk 0:02:10]} 18. Nxd5 {[%clk 0:01:51]}  Qxd5 {[%clk 0:02:05]} 19. Bxa7 {[%clk 0:01:44]}  Qa2+ {[%clk 0:02:03]} 0-1


[Site "https://www.chess.com"]

[Event "Titled Tuesday Blitz August 08 Early 2023"]
[White "Prokofiev, Valentyn"]
[Black "Ladan, Nicholas"]
[WhiteFideId "14160161"]
[BlackFideId "30918855"]
[WhiteElo "2588"]
[BlackElo "2432"]
[Result "1-0"]
[Round "4"]
[TimeControl "180+1"]
[Date "2023.08.08"]
[WhiteClock "0:01:04"]
[BlackClock "0:00:34"]
[Board "138"]

1. Nf3 {[%clk 0:03:00]}  d5 {[%clk 0:02:57]} 2. c4 {[%clk 0:03:01]}  c6 {[%clk 0:02:56]} 3. d4 {[%clk 0:03:00]}  Nf6 {[%clk 0:02:56]} 4. Qc2 {[%clk 0:03:01]}  g6 {[%clk 0:02:56]} 5. cxd5 {[%clk 0:03:01]}  cxd5 {[%clk 0:02:56]} 6. Nc3 {[%clk 0:03:01]}  Nc6 {[%clk 0:02:55]} 7. Bf4 {[%clk 0:03:02]}  Bg7 {[%clk 0:02:55]} 8. e3 {[%clk 0:03:02]}  O-O {[%clk 0:02:54]} 9. Be2 {[%clk 0:03:02]}  Bf5 {[%clk 0:02:50]} 10. Qb3 {[%clk 0:03:03]}  Na5 {[%clk 0:02:44]} 11. Qb4 {[%clk 0:02:58]}  Nh5 {[%clk 0:02:33]} 12. Be5 {[%clk 0:02:53]}  f6 {[%clk 0:02:32]} 13. Bg3 {[%clk 0:02:51]}  Nxg3 {[%clk 0:02:32]} 14. hxg3 {[%clk 0:02:52]}  Be6 {[%clk 0:02:28]} 15. O-O {[%clk 0:02:49]}  Bf7 {[%clk 0:02:28]} 16. Rfc1 {[%clk 0:02:49]}  e5 {[%clk 0:02:26]} 17. Na4 {[%clk 0:02:42]}  e4 {[%clk 0:02:22]} 18. Nd2 {[%clk 0:02:41]}  b6 {[%clk 0:02:19]} 19. Ba6 {[%clk 0:02:30]}  Re8 {[%clk 0:02:15]} 20. Qa3 {[%clk 0:02:21]}  Qd7 {[%clk 0:02:10]} 21. b3 {[%clk 0:01:57]}  h5 {[%clk 0:02:07]} 22. Nc3 {[%clk 0:01:47]}  Qe7 {[%clk 0:02:00]} 23. Qxe7 {[%clk 0:01:40]}  Rxe7 {[%clk 0:02:00]} 24. Ne2 {[%clk 0:01:41]}  g5 {[%clk 0:02:00]} 25. b4 {[%clk 0:01:40]}  Nc4 {[%clk 0:01:57]} 26. Nxc4 {[%clk 0:01:40]}  dxc4 {[%clk 0:01:57]} 27. Bxc4 {[%clk 0:01:41]}  f5 {[%clk 0:01:42]} 28. Bxf7+ {[%clk 0:01:39]}  Kxf7 {[%clk 0:01:43]} 29. Rc6 {[%clk 0:01:38]}  h4 {[%clk 0:01:37]} 30. gxh4 {[%clk 0:01:35]}  gxh4 {[%clk 0:01:37]} 31. Nf4 {[%clk 0:01:34]}  Rd8 {[%clk 0:01:14]} 32. Rac1 {[%clk 0:01:33]}  Rdd7 {[%clk 0:01:11]} 33. b5 {[%clk 0:01:31]}  Bf8 {[%clk 0:01:06]} 34. Ng6 {[%clk 0:01:28]}  Re8 {[%clk 0:00:54]} 35. Ne5+ {[%clk 0:01:25]}  Rxe5 {[%clk 0:00:54]} 36. dxe5 {[%clk 0:01:26]}  Rd2 {[%clk 0:00:54]} 37. Rf6+ {[%clk 0:01:23]}  Ke7 {[%clk 0:00:49]} 38. Rc8 {[%clk 0:01:16]}  f4 {[%clk 0:00:38]} 39. Rfxf8 {[%clk 0:01:06]}  a5 {[%clk 0:00:35]} 40. Rce8+ {[%clk 0:01:02]}  Kd7 {[%clk 0:00:34]} 41. Rd8+ {[%clk 0:01:03]}  Ke6 {[%clk 0:00:34]} 42. Rxd2 {[%clk 0:01:02]}  fxe3 {[%clk 0:00:35]} 43. fxe3 {[%clk 0:01:02]}  a4 {[%clk 0:00:35]} 44. Kh2 {[%clk 0:01:02]}  a3 {[%clk 0:00:36]} 45. Kh3 {[%clk 0:01:03]}  Ke7 {[%clk 0:00:32]} 46. Rf4 {[%clk 0:01:03]}  Ke6 {[%clk 0:00:33]} 47. Kxh4 {[%clk 0:01:03]}  Ke7 {[%clk 0:00:33]} 48. g4 {[%clk 0:01:04]}  Ke6 {[%clk 0:00:33]} 49. g5 {[%clk 0:01:04]}  Ke7 {[%clk 0:00:33]} 50. g6 {[%clk 0:01:05]}  Ke6 {[%clk 0:00:34]} 51. g7 {[%clk 0:01:06]}  Kxe5 {[%clk 0:00:35]} 52. g8=R {[%clk 0:01:03]}  Ke6 {[%clk 0:00:34]} 53. Re8# {[%clk 0:01:04]} 1-0


[Site "https://www.chess.com"]

[Event "Titled Tuesday Blitz August 08 Early 2023"]
[White "Semenenko, Dmytry"]
[Black "Maus7"]
[WhiteFideId "14118645"]
[WhiteElo "2409"]
[BlackElo "2571"]
[Result "1/2-1/2"]
[Round "4"]
[TimeControl "180+1"]
[Date "2023.08.08"]
[WhiteClock "0:00:24"]
[BlackClock "0:00:02"]
[Board "141"]

1. Nf3 {[%clk 0:03:00]}  d5 {[%clk 0:02:59]} 2. c4 {[%clk 0:03:00]}  e6 {[%clk 0:02:59]} 3. d4 {[%clk 0:03:00]}  Nf6 {[%clk 0:02:59]} 4. Nc3 {[%clk 0:03:00]}  Bb4 {[%clk 0:02:59]} 5. e3 {[%clk 0:03:00]}  O-O {[%clk 0:02:59]} 6. Bd3 {[%clk 0:03:00]}  dxc4 {[%clk 0:02:59]} 7. Bxc4 {[%clk 0:03:00]}  c5 {[%clk 0:03:00]} 8. O-O {[%clk 0:03:00]}  cxd4 {[%clk 0:03:01]} 9. Nxd4 {[%clk 0:02:58]}  Nbd7 {[%clk 0:02:41]} 10. a3 {[%clk 0:02:55]}  Be7 {[%clk 0:02:38]} 11. e4 {[%clk 0:02:52]}  Qc7 {[%clk 0:02:30]} 12. Bd3 {[%clk 0:02:47]}  a6 {[%clk 0:02:22]} 13. Bg5 {[%clk 0:02:35]}  h6 {[%clk 0:02:17]} 14. Bh4 {[%clk 0:02:32]}  b5 {[%clk 0:02:08]} 15. Bg3 {[%clk 0:02:26]}  Qb6 {[%clk 0:02:06]} 16. e5 {[%clk 0:02:25]}  Ne8 {[%clk 0:01:40]} 17. Be4 {[%clk 0:02:14]}  Bb7 {[%clk 0:01:38]} 18. Bxb7 {[%clk 0:02:10]}  Qxb7 {[%clk 0:01:39]} 19. Qg4 {[%clk 0:02:05]}  Nc7 {[%clk 0:01:30]} 20. Rfd1 {[%clk 0:01:57]}  Nb6 {[%clk 0:01:23]} 21. Ne4 {[%clk 0:01:52]}  Nbd5 {[%clk 0:01:10]} 22. Nd6 {[%clk 0:01:49]}  Qb6 {[%clk 0:01:07]} 23. Rac1 {[%clk 0:01:45]}  Rad8 {[%clk 0:01:01]} 24. Rxc7 {[%clk 0:01:38]}  Nxc7 {[%clk 0:00:40]} 25. Bf4 {[%clk 0:01:26]}  Kh7 {[%clk 0:00:35]} 26. Qh5 {[%clk 0:01:22]}  Nd5 {[%clk 0:00:32]} 27. Bg3 {[%clk 0:01:14]}  g6 {[%clk 0:00:30]} 28. Qf3 {[%clk 0:01:12]}  h5 {[%clk 0:00:28]} 29. h4 {[%clk 0:01:06]}  Rd7 {[%clk 0:00:18]} 30. Qe4 {[%clk 0:00:57]}  f5 {[%clk 0:00:10]} 31. Qe2 {[%clk 0:00:50]}  f4 {[%clk 0:00:07]} 32. Nxe6 {[%clk 0:00:48]}  fxg3 {[%clk 0:00:05]} 33. Nxf8+ {[%clk 0:00:48]}  Bxf8 {[%clk 0:00:05]} 34. Rxd5 {[%clk 0:00:48]}  gxf2+ {[%clk 0:00:04]} 35. Qxf2 {[%clk 0:00:48]}  Qxf2+ {[%clk 0:00:02]} 36. Kxf2 {[%clk 0:00:48]}  Bxd6 {[%clk 0:00:01]} 37. Rxd6 {[%clk 0:00:48]}  Ra7 {[%clk 0:00:01]} 38. Ke3 {[%clk 0:00:47]}  Kg7 {[%clk 0:00:02]} 39. Ke4 {[%clk 0:00:47]}  Kf7 {[%clk 0:00:02]} 40. Kd5 {[%clk 0:00:46]}  a5 {[%clk 0:00:02]} 41. Kc5 {[%clk 0:00:40]}  b4 {[%clk 0:00:01]} 42. axb4 {[%clk 0:00:40]}  axb4 {[%clk 0:00:02]} 43. Kxb4 {[%clk 0:00:41]}  Re7 {[%clk 0:00:02]} 44. Rd5 {[%clk 0:00:40]}  Rc7 {[%clk 0:00:02]} 45. Kb3 {[%clk 0:00:39]}  Rc1 {[%clk 0:00:02]} 46. Rd2 {[%clk 0:00:35]}  Ke6 {[%clk 0:00:01]} 47. Re2 {[%clk 0:00:35]}  Rf1 {[%clk 0:00:01]} 48. Kb4 {[%clk 0:00:35]}  Rf4+ {[%clk 0:00:01]} 49. Kc5 {[%clk 0:00:34]}  Rxh4 {[%clk 0:00:01]} 50. b4 {[%clk 0:00:34]}  Rh1 {[%clk 0:00:02]} 51. b5 {[%clk 0:00:34]}  Rc1+ {[%clk 0:00:02]} 52. Kb6 {[%clk 0:00:34]}  g5 {[%clk 0:00:02]} 53. Kb7 {[%clk 0:00:33]}  h4 {[%clk 0:00:02]} 54. b6 {[%clk 0:00:34]}  g4 {[%clk 0:00:02]} 55. Kb8 {[%clk 0:00:34]}  Kd7 {[%clk 0:00:01]} 56. e6+ {[%clk 0:00:32]}  Ke7 {[%clk 0:00:01]} 57. b7 {[%clk 0:00:33]}  g3 {[%clk 0:00:01]} 58. Re4 {[%clk 0:00:28]}  h3 {[%clk 0:00:01]} 59. gxh3 {[%clk 0:00:29]}  g2 {[%clk 0:00:02]} 60. Rg4 {[%clk 0:00:29]}  g1=Q {[%clk 0:00:02]} 61. Rxg1 {[%clk 0:00:27]}  Rxg1 {[%clk 0:00:03]} 62. Ka7 {[%clk 0:00:26]}  Ra1+ {[%clk 0:00:03]} 63. Kb6 {[%clk 0:00:26]}  Rb1+ {[%clk 0:00:03]} 64. Kc7 {[%clk 0:00:26]}  Rc1+ {[%clk 0:00:02]} 65. Kb6 {[%clk 0:00:26]}  Rb1+ {[%clk 0:00:02]} 66. Ka7 {[%clk 0:00:25]}  Ra1+ {[%clk 0:00:02]} 67. Kb8 {[%clk 0:00:25]}  Kxe6 {[%clk 0:00:02]} 68. Kc8 {[%clk 0:00:24]}  Rc1+ {[%clk 0:00:03]} 69. Kd8 {[%clk 0:00:24]}  Rb1 {[%clk 0:00:03]} 70. Kc8 {[%clk 0:00:24]}  Rc1+ {[%clk 0:00:02]} 71. Kd8 {[%clk 0:00:24]}  Rd1+ {[%clk 0:00:02]} 72. Kc8 {[%clk 0:00:24]}  Rc1+ {[%clk 0:00:02]} 1/2-1/2


[Site "https://www.chess.com"]

[Event "Titled Tuesday Blitz August 08 Early 2023"]
[White "Pratama, Constantius Leonardo"]
[Black "Lacasa Diaz, Jose Antonio"]
[WhiteFideId "7104677"]
[BlackFideId "2203375"]
[WhiteElo "2553"]
[BlackElo "2368"]
[Result "0-1"]
[Round "4"]
[TimeControl "180+1"]
[Date "2023.08.08"]
[WhiteClock "0:00:00"]
[BlackClock "0:00:21"]
[Board "144"]

1. e4 {[%clk 0:02:59]}  c5 {[%clk 0:02:59]} 2. Nc3 {[%clk 0:02:58]}  e6 {[%clk 0:02:59]} 3. Bc4 {[%clk 0:02:56]}  Nc6 {[%clk 0:02:57]} 4. f4 {[%clk 0:02:56]}  Nge7 {[%clk 0:02:52]} 5. Bb3 {[%clk 0:02:43]}  d5 {[%clk 0:02:50]} 6. d3 {[%clk 0:02:38]}  b5 {[%clk 0:02:49]} 7. exd5 {[%clk 0:02:08]}  exd5 {[%clk 0:02:48]} 8. Nf3 {[%clk 0:01:59]}  c4 {[%clk 0:02:46]} 9. dxc4 {[%clk 0:01:58]}  dxc4 {[%clk 0:02:45]} 10. Qxd8+ {[%clk 0:01:58]}  Kxd8 {[%clk 0:02:24]} 11. Nxb5 {[%clk 0:01:52]}  cxb3 {[%clk 0:02:23]} 12. Ng5 {[%clk 0:01:48]}  Be6 {[%clk 0:02:20]} 13. axb3 {[%clk 0:01:46]}  h6 {[%clk 0:02:14]} 14. Nxe6+ {[%clk 0:01:41]}  fxe6 {[%clk 0:02:15]} 15. Be3 {[%clk 0:01:40]}  Nd5 {[%clk 0:02:07]} 16. Bxa7 {[%clk 0:01:26]}  Nxa7 {[%clk 0:01:59]} 17. Rxa7 {[%clk 0:01:23]}  Rxa7 {[%clk 0:01:50]} 18. Nxa7 {[%clk 0:01:24]}  Nxf4 {[%clk 0:01:46]} 19. g3 {[%clk 0:01:15]}  Nd5 {[%clk 0:01:44]} 20. Kd2 {[%clk 0:01:05]}  Bc5 {[%clk 0:01:43]} 21. Nc6+ {[%clk 0:01:01]}  Kc7 {[%clk 0:01:40]} 22. Ne5 {[%clk 0:00:59]}  Rf8 {[%clk 0:01:38]} 23. Nd3 {[%clk 0:00:56]}  Bd6 {[%clk 0:01:25]} 24. Ra1 {[%clk 0:00:51]}  Kb7 {[%clk 0:01:11]} 25. c3 {[%clk 0:00:51]}  Nf6 {[%clk 0:01:08]} 26. b4 {[%clk 0:00:45]}  Ng4 {[%clk 0:01:01]} 27. h3 {[%clk 0:00:45]}  Nf2 {[%clk 0:01:01]} 28. Re1 {[%clk 0:00:26]}  Nxd3 {[%clk 0:00:55]} 29. Kxd3 {[%clk 0:00:27]}  Rf3+ {[%clk 0:00:45]} 30. Kd4 {[%clk 0:00:27]}  e5+ {[%clk 0:00:44]} 31. Kd5 {[%clk 0:00:28]}  Bc7 {[%clk 0:00:45]} 32. c4 {[%clk 0:00:25]}  Rd3+ {[%clk 0:00:40]} 33. Ke6 {[%clk 0:00:23]}  Rxg3 {[%clk 0:00:38]} 34. b5 {[%clk 0:00:19]}  Kb6 {[%clk 0:00:33]} 35. Ra1 {[%clk 0:00:18]}  Kc5 {[%clk 0:00:29]} 36. Ra6 {[%clk 0:00:16]}  Rg6+ {[%clk 0:00:26]} 37. Kd7 {[%clk 0:00:13]}  Rxa6 {[%clk 0:00:26]} 38. bxa6 {[%clk 0:00:13]}  Bb6 {[%clk 0:00:27]} 39. Kc8 {[%clk 0:00:11]}  e4 {[%clk 0:00:25]} 40. Kb7 {[%clk 0:00:11]}  e3 {[%clk 0:00:20]} 41. b4+ {[%clk 0:00:11]}  Kxc4 {[%clk 0:00:21]} 42. Kxb6 {[%clk 0:00:11]}  e2 {[%clk 0:00:21]} 43. a7 {[%clk 0:00:12]}  e1=Q {[%clk 0:00:22]} 44. a8=Q {[%clk 0:00:13]}  Qxb4+ {[%clk 0:00:22]} 45. Kc7 {[%clk 0:00:13]}  Qe7+ {[%clk 0:00:21]} 46. Kb6 {[%clk 0:00:00]}  Qc5+ {[%clk 0:00:21]} 0-1


[Site "https://www.chess.com"]